bitfinex/quotes_SOLUSD_20220212
["timestamp","ask_amount","ask_price","bid_price","bid_amount"]
[1644643645849,0.03751398,97.06,97.001,1.464235]
[1644643646148,5.152,97.059,97.0,0.024]
[1644643647549,7.49802263,97.059,97.0,0.024]
[1644643647948,7.49802263,97.059,96.98,0.024]
[1644643648149,7.49802263,97.059,96.99,0.024]
[1644643648948,5.152,97.059,96.99,0.024]
[1644643649755,15.4674,97.05,96.99,0.024]
[1644643649951,5.152,97.049,96.99,0.024]
[1644643650355,5.152,97.059,96.99,0.024]
[1644643651754,15.4695,97.04,96.99,0.024]
[1644643651953,29.6337,97.039,96.99,0.024]
[1644643652155,29.6337,97.039,96.97,15.4922]
[1644643653856,24.4817,97.039,96.971,5.154]
[1644643654056,24.4817,97.039,96.98,0.024]
[1644643654257,5.154,97.038,96.98,0.024]
[1644643654457,5.154,97.038,96.97,15.4922]
[1644643657962,5.154,97.038,96.971,5.154]
[1644643662487,5.154,97.038,96.97,15.4922]
[1644643668591,5.154,97.038,96.971,5.154]
[1644643668989,5.154,97.038,96.972,1.464235]
[1644643669190,5.154,97.038,96.981,1.464235]
[1644643671798,5.154,97.038,96.98,0.024]
[1644643672001,5.154,97.038,96.979,1.464235]
[1644643672199,5.154,97.038,96.98,0.024]
[1644643672402,5.154,97.038,96.982,1.464235]
[1644643673803,5.154,97.038,96.981,1.464235]
[1644643674005,5.154,97.038,96.982,1.464235]
[1644643674402,5.154,97.038,96.984,1.464235]
[1644643675003,5.154,97.038,96.982,1.464235]
[1644643675407,5.154,97.038,96.99,1.464235]
[1644643676409,5.154,97.038,96.991,1.464235]
[1644643677107,5.154,97.038,96.98,0.024]
[1644643677108,5.154,97.038,96.992,1.464235]
[1644643677609,5.154,97.038,96.99,0.024]
[1644643677913,5.154,97.038,96.981,1.464235]
[1644643678109,15.4706,97.03,96.981,1.464235]
[1644643678309,5.154,97.029,96.98,1.488235]
[1644643678508,5.154,97.029,96.976,1.464235]
[1644643678911,23.4378,97.028,96.976,1.464235]
[1644643679112,5.154,97.027,96.976,1.464235]
[1644643679311,5.154,97.027,96.973,1.464235]
[1644643680512,5.154,97.027,96.974,1.464235]
[1644643680713,23.4378,97.028,96.974,1.464235]
[1644643680939,5.154,97.027,96.974,1.464235]
[1644643681515,5.154,97.027,96.972,1.464235]
[1644643681713,5.154,97.027,96.971,1.464235]
[1644643681914,5.154,97.027,96.974,1.464235]
[1644643682114,5.154,97.027,96.975,1.464235]
[1644643682315,5.154,97.027,96.976,1.464235]
[1644643682617,5.154,97.027,96.98,1.464235]
[1644643682814,5.154,97.027,96.981,1.464235]
[1644643685116,5.154,97.027,96.982,1.464235]
[1644643685421,23.4378,97.028,96.982,1.464235]
[1644643685818,5.154,97.027,96.98,0.024]
[1644643686019,5.154,97.027,96.979,1.464235]
[1644643687617,5.154,97.027,96.98,1.464235]
[1644643687818,23.4378,97.028,96.98,1.464235]
[1644643688020,23.4378,97.028,96.981,1.464235]
[1644643688449,23.4378,97.028,96.979,1.464235]
[1644643689749,5.154,97.027,96.979,1.464235]
[1644643690354,5.154,97.027,96.978,1.464235]
[1644643690550,5.154,97.027,96.976,1.464235]
[1644643690750,5.154,97.027,96.978,1.464235]
[1644643691251,5.154,97.027,96.979,1.464235]
[1644643692353,5.154,97.027,96.98,1.464235]
[1644643692954,5.154,97.027,96.981,1.464235]
[1644643693156,5.154,97.027,96.982,1.464235]
[1644643695355,5.154,97.027,96.981,1.464235]
[1644643695757,5.154,97.027,96.978,1.464235]
[1644643695955,5.154,97.027,96.98,1.464235]
[1644643696155,23.4378,97.028,96.981,1.464235]
[1644643696354,23.4378,97.028,96.984,1.464235]
[1644643696557,23.4378,97.028,96.986,1.464235]
[1644643697657,23.4378,97.028,96.987,1.464235]
[1644643698657,5.154,97.039,96.993,1.464235]
[1644643698854,5.154,97.049,96.995,1.464235]
[1644643699055,5.154,97.049,96.99,0.024]
[1644643699056,28.2197,97.069,97.004,1.464235]
[1644643699255,28.2197,97.069,97.005,1.464235]
[1644643699458,0.03751398,97.06,97.005,1.464235]
[1644643699655,28.2197,97.069,97.005,1.464235]
[1644643699858,28.2197,97.069,97.006,5.152]
[1644643700056,28.2197,97.069,97.007,1.464235]
[1644643700755,28.2197,97.069,97.01,15.4621]
[1644643702364,28.2197,97.069,97.003,1.464235]
[1644643702564,28.2197,97.069,96.99,0.024]
[1644643702762,0.03751398,97.06,96.99,0.024]
[1644643702962,5.152,97.059,96.99,0.024]
[1644643703163,23.9474,97.058,96.99,0.024]
[1644643703364,5.152,97.057,96.991,5.152]
[1644643703564,5.152,97.057,96.99,0.024]
[1644643704965,23.9474,97.058,96.991,5.152]
[1644643705565,20.80985547,97.057,96.991,5.152]
[1644643706167,23.9474,97.058,96.991,5.152]
[1644643706464,0.03751398,97.05,96.99,0.024]
[1644643706664,5.152,97.049,96.99,0.024]
[1644643708366,15.469,97.04,96.99,0.024]
[1644643708765,27.9459,97.039,96.99,0.024]
[1644643709565,22.7939,97.039,96.99,0.024]
[1644643710366,5.152,97.038,96.99,0.024]
[1644643710568,15.4704,97.03,96.99,0.024]
[1644643710768,5.154,97.029,96.971,22.7653]
[1644643711468,24.7559,97.028,96.971,22.7653]
[1644643711667,5.154,97.027,96.971,22.7653]
[1644643712868,24.7559,97.028,96.971,22.7653]
[1644643714269,5.154,97.027,96.971,22.7653]
[1644643716373,5.154,97.027,96.974,1.464235]
[1644643716573,24.7559,97.028,96.975,1.464235]
[1644643716772,24.7559,97.028,96.976,5.154]
[1644643716973,24.7559,97.028,96.977,1.464235]
[1644643717173,24.7559,97.028,96.978,1.464235]
[1644643717572,24.7559,97.028,96.977,1.464235]
[1644643719077,24.7559,97.028,96.98,15.467]
[1644643719278,24.7559,97.028,96.983,1.464235]
[1644643719478,24.7559,97.028,96.984,6.618235]
[1644643719676,24.7559,97.028,96.984,1.464235]
[1644643720076,24.7559,97.028,96.981,5.154]
[1644643720278,5.154,97.027,96.978,1.464235]
[1644643720482,5.154,97.027,96.971,24.229535]
[1644643720677,5.154,97.027,96.971,22.7653]
[1644643721780,24.7559,97.028,96.971,22.7653]
[1644643722080,24.7559,97.028,96.97,0.024]
[1644643722284,15.4724,97.02,96.97,0.024]
[1644643722584,5.154,97.019,96.95,0.024]
[1644643722782,5.154,97.019,96.94,0.024]
[1644643722986,20.76031426,97.018,96.94,0.024]
[1644643723184,5.155,97.017,96.926,1.464235]
[1644643723382,25.91531426,97.017,96.94,0.024]
[1644643723583,7.0,97.01,96.94,0.024]
[1644643723783,14.88,97.0,96.925,1.464235]
[1644643723985,27.9037,96.999,96.94,0.024]
[1644643724184,27.9037,96.999,96.924,1.464235]
[1644643724384,27.9037,96.999,96.93,0.024]
[1644643724584,27.9037,96.999,96.92,0.024]
[1644643724786,15.4806,96.98,96.93,0.024]
[1644643724985,28.0574,96.979,96.92,0.024]
[1644643725185,28.0574,96.979,96.91,0.024]
[1644643725385,28.0574,96.979,96.92,0.024]
[1644643725589,28.0574,96.979,96.91,0.024]
[1644643726889,15.4815,96.97,96.91,0.024]
[1644643728493,5.157,96.969,96.91,0.024]
[1644643731208,15.4818,96.96,96.91,0.024]
[1644643731509,5.158,96.959,96.91,0.024]
[1644643731708,5.157,96.976,96.91,0.024]
[1644643731908,23.0382,96.978,96.91,0.024]
[1644643732107,23.0382,96.978,96.893,5.158]
[1644643732309,5.158,96.977,96.9,0.024]
[1644643732908,15.4832,96.95,96.9,0.024]
[1644643733112,15.4832,96.95,96.891,38.52233159]
[1644643733113,15.4832,96.95,96.892,5.158]
[1644643735013,15.4832,96.95,96.884,5.158]
[1644643735212,15.4832,96.95,96.89,0.024]
[1644643735412,15.4855,96.94,96.881,5.159]
[1644643735615,15.4855,96.94,96.89,0.024]
[1644643735813,15.4855,96.94,96.882,44.85931948]
[1644643736013,15.4855,96.94,96.883,5.159]
[1644643737415,5.159,96.939,96.883,5.159]
[1644643738414,15.4864,96.93,96.883,5.159]
[1644643738814,5.159,96.929,96.883,5.159]
[1644643739215,5.159,96.929,96.865,1.464235]
[1644643739416,24.6809,96.928,96.87,0.024]
[1644643739615,5.16,96.927,96.87,0.024]
[1644643742917,24.6809,96.928,96.87,0.024]
[1644643744018,5.16,96.959,96.87,0.024]
[1644643744219,23.3652,96.958,96.87,15.5077]
[1644643744420,23.3652,96.958,96.875,1.464235]
[1644643744622,23.3652,96.958,96.89,0.024]
[1644643744821,23.3652,96.958,96.886,1.464235]
[1644643745019,23.3652,96.958,96.89,0.024]
[1644643745420,23.3652,96.958,96.891,5.158]
[1644643745621,23.3652,96.958,96.901,47.94452483]
[1644643745826,23.3652,96.958,96.902,5.158]
[1644643746322,15.4799,96.98,96.902,5.158]
[1644643746524,5.157,96.979,96.91,15.4779]
[1644643746725,15.4767,96.99,96.911,5.157]
[1644643746925,5.157,96.989,96.92,0.024]
[1644643747125,5.157,97.008,96.912,1.464235]
[1644643747327,5.157,97.008,96.92,0.024]
[1644643747828,5.157,97.008,96.92,15.4761]
[1644643748028,5.157,97.008,96.93,0.024]
[1644643748229,5.157,97.008,96.932,34.98299382]
[1644643748430,5.157,97.008,96.933,5.156]
[1644643751033,15.4754,97.0,96.933,5.156]
[1644643751331,5.156,96.999,96.933,5.156]
[1644643751531,5.156,96.999,96.932,34.98299382]
[1644643751729,47.6926,97.009,96.932,34.98299382]
[1644643751730,5.156,97.008,96.932,34.98299382]
[1644643752730,15.4769,96.99,96.932,34.98299382]
[1644643752931,5.156,96.989,96.93,0.024]
[1644643753130,5.156,97.007,96.92,0.024]
[1644643753330,5.156,97.008,96.93,0.024]
[1644643753537,5.156,97.006,96.92,0.024]
[1644643753732,5.156,97.007,96.93,0.024]
[1644643753932,5.156,97.005,96.914,1.464235]
[1644643754134,47.6926,97.009,96.912,37.96834161]
[1644643754135,14.88,97.0,96.912,39.43257661]
[1644643754334,15.4787,96.98,96.92,0.024]
[1644643754535,23.946,96.979,96.92,0.024]
[1644643754736,5.157,96.978,96.92,0.024]
[1644643755133,5.157,96.978,96.91,0.024]
[1644643755334,5.157,96.978,96.906,1.464235]
[1644643755536,5.157,96.978,96.91,0.024]
[1644643755735,15.4811,96.97,96.905,1.464235]
[1644643755957,5.157,96.969,96.91,0.024]
[1644643756142,5.157,96.977,96.91,0.024]
[1644643756339,5.157,96.978,96.91,0.024]
[1644643757842,15.4817,96.96,96.91,0.024]
[1644643758045,5.158,96.959,96.91,0.024]
[1644643760555,15.4817,96.96,96.91,0.024]
[1644643760855,5.158,96.959,96.91,0.024]
[1644643762655,15.4833,96.95,96.91,0.024]
[1644643762855,15.4833,96.95,96.897,5.158]
[1644643763055,5.158,96.949,96.897,5.158]
[1644643764265,5.158,96.949,96.895,1.464235]
[1644643764464,24.114,96.948,96.894,1.464235]
[1644643764765,5.158,96.947,96.894,1.464235]
[1644643765164,5.158,96.947,96.895,1.464235]
[1644643765568,5.158,96.947,96.891,1.464235]
[1644643765967,5.158,96.947,96.89,1.464235]
[1644643768070,5.158,96.947,96.891,1.464235]
[1644643768672,5.158,96.947,96.88,0.024]
[1644643768673,5.158,96.947,96.892,1.464235]
[1644643769073,5.158,96.947,96.893,1.464235]
[1644643769273,5.158,96.947,96.892,1.464235]
[1644643769570,5.158,96.947,96.895,1.464235]
[1644643770372,5.158,96.947,96.896,1.464235]
[1644643770572,24.114,96.948,96.896,1.464235]
[1644643770773,24.114,96.948,96.897,1.464235]
[1644643771674,24.114,96.948,96.894,1.464235]
[1644643771872,24.114,96.948,96.896,1.464235]
[1644643772072,5.158,96.969,96.902,34.23338628]
[1644643772272,5.158,96.969,96.91,0.024]
[1644643772473,22.6243,96.977,96.913,1.464235]
[1644643772674,5.157,97.008,96.92,0.024]
[1644643772875,5.157,97.008,96.92,1.464235]
[1644643772876,22.6243,97.007,96.92,1.464235]
[1644643773072,5.156,97.006,96.93,0.024]
[1644643773873,15.4753,97.0,96.93,0.024]
[1644643774073,5.156,96.999,96.93,0.024]
[1644643774276,5.156,97.006,96.93,0.024]
[1644643774473,5.156,96.998,96.93,0.024]
[1644643774675,5.156,97.005,96.93,0.024]
[1644643774875,5.156,96.997,96.93,0.024]
[1644643775075,15.4776,96.99,96.93,0.024]
[1644643775273,27.6589,96.989,96.92,0.024]
[1644643775474,27.6589,96.989,96.93,0.024]
[1644643775675,27.6589,96.989,96.92,0.024]
[1644643776879,15.4789,96.98,96.92,0.024]
[1644643777077,5.157,96.979,96.92,0.024]
[1644643777876,23.1619,96.978,96.92,0.024]
[1644643778078,5.157,96.977,96.92,0.024]
[1644643780481,15.4802,96.97,96.92,0.024]
[1644643780682,5.157,96.969,96.915,23.5542]
[1644643780883,5.157,96.969,96.915,25.018435]
[1644643781985,5.157,96.969,96.916,1.464235]
[1644643782184,15.4802,96.97,96.917,1.464235]
[1644643783690,15.4802,96.97,96.918,1.464235]
[1644643783885,15.4802,96.97,96.917,1.464235]
[1644643784085,15.4802,96.97,96.918,1.464235]
[1644643784285,15.4802,96.97,96.917,1.464235]
[1644643784686,11.85610569,96.97,96.918,1.464235]
[1644643784886,5.157,96.969,96.916,1.464235]
[1644643785086,5.157,96.969,96.915,25.018435]
[1644643785488,5.157,96.969,96.915,23.5542]
[1644643787992,11.85610569,96.97,96.915,25.018435]
[1644643788192,11.85610569,96.97,96.915,23.5542]
[1644643788596,11.85610569,96.97,96.915,25.018435]
[1644643789994,11.85610569,96.97,96.915,23.5542]
[1644643790394,11.85610569,96.97,96.912,1.464235]
[1644643790898,11.85610569,96.97,96.911,1.464235]
[1644643791096,5.157,96.969,96.91,0.024]
[1644643791296,15.4823,96.96,96.91,0.024]
[1644643791495,28.0469,96.959,96.906,1.464235]
[1644643791996,28.0469,96.959,96.905,1.464235]
[1644643792195,28.0469,96.959,96.906,1.464235]
[1644643793499,22.8889,96.959,96.905,1.464235]
[1644643793698,5.158,96.958,96.906,1.464235]
[1644643793898,5.158,96.958,96.905,1.464235]
[1644643794902,5.158,96.958,96.905,36.18519261]
[1644643795100,5.158,96.958,96.906,1.464235]
[1644643796200,5.158,96.958,96.905,1.464235]
[1644643796602,5.158,96.958,96.906,1.464235]
[1644643797102,5.158,96.958,96.907,1.464235]
[1644643797903,5.158,96.958,96.906,1.464235]
[1644643798604,5.158,96.958,96.905,1.464235]
[1644643799410,5.158,96.958,96.906,1.464235]
[1644643803519,22.8889,96.959,96.905,1.464235]
[1644643803720,5.158,96.957,96.905,1.464235]
[1644643803919,5.158,96.958,96.905,1.464235]
[1644643804835,5.158,96.958,96.906,1.464235]
[1644643806337,5.158,96.958,96.905,1.464235]
[1644643810038,5.158,96.958,96.904,1.464235]
[1644643810437,5.158,96.958,96.905,1.464235]
[1644643810639,5.158,96.958,96.904,1.464235]
[1644643810942,5.158,96.958,96.905,1.464235]
[1644643812340,5.158,96.958,96.904,1.464235]
[1644643812540,22.8889,96.959,96.904,1.464235]
[1644643812741,5.158,96.958,96.909,1.464235]
[1644643812941,5.158,96.958,96.907,1.464235]
[1644643813140,22.8889,96.959,96.906,1.464235]
[1644643813842,22.8889,96.959,96.907,1.464235]
[1644643814041,22.8889,96.959,96.906,1.464235]
[1644643814644,22.8889,96.959,96.905,1.464235]
[1644643814842,22.8889,96.959,96.906,1.464235]
[1644643816441,5.158,96.958,96.906,1.464235]
[1644643816741,5.158,96.958,96.907,1.464235]
[1644643816943,5.158,96.958,96.906,1.464235]
[1644643817341,5.158,96.958,96.905,1.464235]
[1644643817542,5.158,96.958,96.906,1.464235]
[1644643818442,5.158,96.958,96.9,0.024]
[1644643818443,5.158,96.958,96.905,1.464235]
[1644643818643,22.8889,96.959,96.906,1.464235]
[1644643818845,22.8889,96.959,96.907,1.464235]
[1644643819243,22.8889,96.959,96.906,1.464235]
[1644643819442,22.8889,96.959,96.907,1.464235]
[1644643819644,5.158,96.958,96.907,1.464235]
[1644643819853,22.8889,96.959,96.908,1.464235]
[1644643820243,22.8889,96.959,96.907,1.464235]
[1644643820945,22.8889,96.959,96.908,1.464235]
[1644643823053,22.8889,96.959,96.909,1.464235]
[1644643823252,22.8889,96.959,96.9,0.024]
[1644643823253,5.158,96.958,96.908,1.464235]
[1644643823473,5.158,96.958,96.909,1.464235]
[1644643824064,5.158,96.958,96.908,1.464235]
[1644643824864,5.158,96.958,96.905,1.464235]
[1644643825560,5.158,96.958,96.906,1.464235]
[1644643826060,5.158,96.958,96.905,1.464235]
[1644643826761,5.158,96.958,96.9,0.024]
[1644643826762,5.158,96.958,96.902,1.464235]
[1644643827062,15.4834,96.95,96.901,1.464235]
[1644643827267,5.158,96.949,96.899,23.5427]
[1644643827668,5.158,96.956,96.899,23.5427]
[1644643827867,5.158,96.948,96.9,0.024]
[1644643828067,5.158,96.955,96.899,23.5427]
[1644643828268,5.158,96.947,96.9,0.024]
[1644643828469,25.85796132,96.954,96.899,23.5427]
[1644643828674,5.158,96.946,96.9,0.024]
[1644643828971,15.4849,96.94,96.89,0.024]
[1644643829173,15.4849,96.94,96.887,1.464235]
[1644643829373,5.159,96.939,96.887,1.464235]
[1644643829977,5.159,96.939,96.886,1.464235]
[1644643830679,5.159,96.939,96.887,1.464235]
[1644643830883,5.159,96.939,96.886,1.464235]
[1644643831786,5.159,96.939,96.887,1.464235]
[1644643832184,5.159,96.939,96.886,1.464235]
[1644643832586,5.159,96.939,96.884,1.464235]
[1644643834186,5.159,96.939,96.88,1.488235]
[1644643834391,5.159,96.939,96.88,0.024]
[1644643835795,15.4849,96.94,96.88,0.024]
[1644643836288,15.4849,96.94,96.88,1.488235]
[1644643836788,15.4849,96.94,96.88,0.024]
[1644643838990,15.4849,96.94,96.88,1.488235]
[1644643839192,5.159,96.939,96.88,1.488235]
[1644643839390,5.159,96.939,96.88,0.024]
[1644643839890,5.159,96.939,96.882,1.464235]
[1644643840492,15.4869,96.93,96.88,0.024]
[1644643840692,27.9044,96.929,96.868,1.464235]
[1644643840895,27.9044,96.929,96.865,1.464235]
[1644643841294,27.9044,96.929,96.87,0.024]
[1644643841495,15.4893,96.92,96.862,1.464235]
[1644643841694,15.4893,96.92,96.87,0.024]
[1644643841695,5.16,96.919,96.87,0.024]
[1644643841893,22.9928,96.918,96.851,1.464235]
[1644643842093,22.9928,96.918,96.86,0.024]
[1644643842094,5.16,96.917,96.86,0.024]
[1644643842295,5.16,96.917,96.841,1.464235]
[1644643842492,5.16,96.917,96.86,0.024]
[1644643842692,5.16,96.917,96.84,1.488235]
[1644643842895,5.16,96.917,96.85,0.024]
[1644643843093,5.16,96.917,96.839,1.464235]
[1644643843296,15.4918,96.91,96.85,0.024]
[1644643843494,5.16,96.909,96.833,1.464235]
[1644643843695,5.16,96.909,96.83,0.024]
[1644643843696,5.16,96.917,96.84,0.024]
[1644643843893,5.16,96.908,96.831,1.464235]
[1644643844093,5.16,96.917,96.85,0.024]
[1644643844293,5.16,96.907,96.85,0.024]
[1644643844494,5.16,96.916,96.834,1.464235]
[1644643844694,15.4935,96.89,96.84,0.024]
[1644643844896,23.5071,96.889,96.831,1.464235]
[1644643845094,28.6691,96.889,96.83,0.024]
[1644643847296,23.5071,96.889,96.83,0.024]
[1644643847896,5.162,96.888,96.83,0.024]
[1644643851902,15.4945,96.88,96.83,0.024]
[1644643852100,5.162,96.879,96.83,0.024]
[1644643852300,23.8,96.878,96.83,0.024]
[1644643852500,5.162,96.877,96.83,0.024]
[1644643852703,5.162,96.904,96.83,0.024]
[1644643852901,15.493,96.89,96.83,0.024]
[1644643853100,5.162,96.889,96.83,0.024]
[1644643853301,23.8,96.889,96.83,0.024]
[1644643853503,5.162,96.888,96.83,0.024]
[1644643856404,5.162,96.888,96.831,5.162]
[1644643857606,5.162,96.888,96.83,0.024]
[1644643859310,15.4944,96.88,96.83,0.024]
[1644643859513,5.162,96.879,96.83,0.024]
[1644643859710,5.162,96.879,96.81,0.024]
[1644643859910,23.2255,96.878,96.82,0.024]
[1644643860112,5.162,96.877,96.792,1.464235]
[1644643860311,5.162,96.877,96.81,0.024]
[1644643860514,5.162,96.877,96.792,1.464235]
[1644643860912,15.4987,96.87,96.792,1.464235]
[1644643861112,5.163,96.869,96.792,1.464235]
[1644643861514,5.163,96.877,96.792,1.464235]
[1644643861714,5.163,96.877,96.791,1.464235]
[1644643861915,5.163,96.877,96.792,1.464235]
[1644643862714,5.163,96.877,96.793,1.464235]
[1644643862914,15.5003,96.85,96.793,1.464235]
[1644643863117,28.2532,96.849,96.793,1.464235]
[1644643863518,28.2532,96.849,96.792,1.464235]
[1644643864320,28.2532,96.849,96.793,1.464235]
[1644643864520,28.2532,96.849,96.791,1.464235]
[1644643864745,28.2532,96.849,96.789,1.464235]
[1644643864920,28.2532,96.849,96.79,0.024]
[1644643865121,15.5008,96.84,96.79,0.024]
[1644643865323,5.164,96.839,96.788,1.464235]
[1644643865526,5.164,96.839,96.785,1.464235]
[1644643865727,5.164,96.839,96.784,1.464235]
[1644643866123,24.976,96.838,96.785,1.464235]
[1644643866322,5.164,96.837,96.785,1.464235]
[1644643866524,24.976,96.838,96.786,1.464235]
[1644643867022,24.976,96.838,96.788,1.464235]
[1644643867222,24.976,96.838,96.786,1.464235]
[1644643867623,24.976,96.838,96.787,1.464235]
[1644643868626,24.976,96.838,96.786,1.464235]
[1644643868923,24.976,96.838,96.78,0.024]
[1644643868924,24.976,96.838,96.791,1.464235]
[1644643869933,24.976,96.838,96.79,1.464235]
[1644643870133,5.164,96.837,96.79,1.464235]
[1644643870532,5.164,96.837,96.789,1.464235]
[1644643870935,5.164,96.837,96.792,1.464235]
[1644643871335,5.164,96.837,96.789,1.464235]
[1644643871534,5.164,96.837,96.788,1.464235]
[1644643872134,5.164,96.837,96.78,0.024]
[1644643872135,5.164,96.837,96.787,1.464235]
[1644643872354,15.5025,96.83,96.783,1.464235]
[1644643872551,5.164,96.829,96.782,1.464235]
[1644643872952,15.5025,96.83,96.78,1.488235]
[1644643873153,15.5025,96.83,96.78,1.464235]
[1644643873351,15.5025,96.83,96.781,1.464235]
[1644643873852,15.5025,96.83,96.78,1.488235]
[1644643874053,15.5025,96.83,96.779,1.464235]
[1644643874854,15.5025,96.83,96.778,1.464235]
[1644643875155,15.5025,96.83,96.777,1.464235]
[1644643875352,15.5055,96.82,96.777,1.464235]
[1644643875554,15.5055,96.82,96.731,22.7281]
[1644643875555,24.1767,96.819,96.78,0.024]
[1644643875753,24.1767,96.819,96.764,1.464235]
[1644643875754,38.9217,96.819,96.764,1.464235]
[1644643875955,38.9217,96.819,96.76,1.464235]
[1644643876753,15.5066,96.81,96.76,1.464235]
[1644643877053,5.166,96.809,96.76,1.464235]
[1644643877254,23.0455,96.808,96.76,1.464235]
[1644643877454,5.166,96.807,96.76,1.464235]
[1644643877653,5.166,96.807,96.758,1.464235]
[1644643878059,15.5072,96.8,96.758,1.464235]
[1644643878254,15.5072,96.8,96.75,0.024]
[1644643878255,5.166,96.799,96.751,1.464235]
[1644643878455,5.166,96.799,96.75,0.024]
[1644643879961,15.5088,96.79,96.75,0.024]
[1644643880161,24.6032,96.789,96.75,0.024]
[1644643880361,29.7692,96.789,96.743,1.464235]
[1644643880961,29.7692,96.789,96.742,1.464235]
[1644643881365,29.7692,96.789,96.74,0.024]
[1644643881366,15.5088,96.79,96.741,1.464235]
[1644643881562,15.5088,96.79,96.74,0.024]
[1644643881762,5.167,96.789,96.74,1.488235]
[1644643882162,30.1237,96.789,96.74,0.024]
[1644643882764,24.9567,96.789,96.74,0.024]
[1644643883565,15.5072,96.8,96.74,0.024]
[1644643883766,66.5751,96.82,96.75,0.024]
[1644643883767,5.166,96.819,96.75,0.024]
[1644643883966,5.166,96.815,96.75,0.024]
[1644643884163,5.166,96.818,96.75,0.024]
[1644643884765,15.5055,96.81,96.75,0.024]
[1644643884966,5.166,96.809,96.75,0.024]
[1644643885965,23.773,96.808,96.75,0.024]
[1644643886166,5.166,96.807,96.75,0.024]
[1644643886969,15.5071,96.8,96.75,0.024]
[1644643887170,5.166,96.799,96.75,0.024]
[1644643888873,5.166,96.807,96.75,1.488235]
[1644643889876,5.166,96.807,96.75,0.024]
[1644643890876,15.5071,96.8,96.75,0.024]
[1644643891076,5.166,96.799,96.75,0.024]
[1644643894082,15.5091,96.79,96.75,0.024]
[1644643894482,5.166,96.789,96.75,0.024]
[1644643894679,5.166,96.789,96.731,5.166]
[1644643894881,24.6908,96.788,96.731,5.166]
[1644643895080,5.167,96.787,96.731,5.166]
[1644643895280,15.5139,96.78,96.72,0.024]
[1644643895481,14.88,96.77,96.73,0.024]
[1644643895681,5.167,96.769,96.72,0.024]
[1644643895881,24.5833,96.768,96.708,1.464235]
[1644643896083,24.5833,96.768,96.699,1.464235]
[1644643896084,5.168,96.767,96.699,1.464235]
[1644643896281,5.168,96.767,96.692,1.464235]
[1644643896482,7.0,96.76,96.7,0.024]
[1644643896682,5.168,96.759,96.689,1.464235]
[1644643896884,15.5207,96.74,96.7,0.024]
[1644643897081,15.5207,96.74,96.688,1.464235]